[Event "***Titled Tuesday 3|2 Blitz"]
[Site "Chess.com"]
[Date "2017.02.07"]
[Round "1"]
[White "avto24"]
[Black "Zhigalko_Sergei"]
[Result "1-0"]
[WhiteElo "2388"]
[BlackElo "2682"]
[TimeControl "180+2"]
[EndTime "13:11:27 PST"]
[Termination "avto24 won on time"]

1. e4 {[%clk 0:03:02]} 1... c5 {[%clk 0:03:01.1]} 2. c3 {[%clk 0:03:01.9]} 2...
Nf6 {[%clk 0:03:00.3]} 3. e5 {[%clk 0:03:02.1]} 3... Nd5 {[%clk 0:03:01.6]} 4.
d4 {[%clk 0:03:02.9]} 4... cxd4 {[%clk 0:03:03.5]} 5. Nf3 {[%clk 0:03:03.9]}
5... Nc6 {[%clk 0:03:04]} 6. cxd4 {[%clk 0:03:04.9]} 6... d6 {[%clk 0:03:03.1]}
7. Bc4 {[%clk 0:03:06]} 7... Nb6 {[%clk 0:03:04.4]} 8. Bb5 {[%clk 0:03:07.1]}
8... d5 {[%clk 0:03:05.9]} 9. O-O {[%clk 0:03:05.6]} 9... Bf5 {[%clk 0:03:06.8]}
10. a4 {[%clk 0:03:01.8]} 10... a6 {[%clk 0:02:59.7]} 11. Be2 {[%clk 0:02:55.4]}
11... e6 {[%clk 0:02:58.4]} 12. Bd2 {[%clk 0:02:55]} 12... Be7 {[%clk
0:02:58.5]} 13. Qb3 {[%clk 0:02:56]} 13... O-O {[%clk 0:02:49.4]} 14. a5 {[%clk
0:02:56.8]} 14... Nc4 {[%clk 0:02:50.8]} 15. Bxc4 {[%clk 0:02:51.7]} 15... dxc4
{[%clk 0:02:52.7]} 16. Qxc4 {[%clk 0:02:53.6]} 16... Rc8 {[%clk 0:02:54.1]} 17.
Qa4 {[%clk 0:02:48.9]} 17... Bd3 {[%clk 0:02:49.3]} 18. Re1 {[%clk 0:02:24.5]}
18... Bb5 {[%clk 0:02:48.6]} 19. Qb3 {[%clk 0:02:23.9]} 19... Nxd4 {[%clk
0:02:46.6]} 20. Nxd4 {[%clk 0:02:25.8]} 20... Qxd4 {[%clk 0:02:48.5]} 21. Bc3
{[%clk 0:02:25.8]} 21... Qg4 {[%clk 0:02:46.4]} 22. Nd2 {[%clk 0:02:22.8]} 22...
Rfd8 {[%clk 0:02:32.5]} 23. Ne4 {[%clk 0:02:14]} 23... Bc6 {[%clk 0:02:19.9]}
24. f3 {[%clk 0:02:06.4]} 24... Qf4 {[%clk 0:02:09.7]} 25. Qc4 {[%clk
0:01:46.7]} 25... Qf5 {[%clk 0:01:50.6]} 26. Qe2 {[%clk 0:01:37.6]} 26... h6
{[%clk 0:01:42.7]} 27. Rad1 {[%clk 0:01:29.1]} 27... Bd5 {[%clk 0:01:36]} 28. h3
{[%clk 0:01:22]} 28... Rc4 {[%clk 0:01:31.6]} 29. Nd2 {[%clk 0:01:11.7]} 29...
Rc7 {[%clk 0:01:09.8]} 30. Nf1 {[%clk 0:01:09.8]} 30... Qf4 {[%clk 0:00:55.7]}
31. Kh1 {[%clk 0:00:59.4]} 31... Bc5 {[%clk 0:00:52.2]} 32. Ne3 {[%clk 0:00:56]}
32... Bxe3 {[%clk 0:00:51.9]} 33. Qxe3 {[%clk 0:00:57.1]} 33... Qxe3 {[%clk
0:00:53.8]} 34. Rxe3 {[%clk 0:00:58.3]} 34... Rdc8 {[%clk 0:00:55.7]} 35. Kg1
{[%clk 0:00:57.7]} 35... Rc4 {[%clk 0:00:56.8]} 36. Kf2 {[%clk 0:00:58.1]} 36...
g5 {[%clk 0:00:58.5]} 37. Red3 {[%clk 0:00:56.6]} 37... Ra4 {[%clk 0:00:53.5]}
38. Rd4 {[%clk 0:00:56.8]} 38... Ra2 {[%clk 0:00:53.7]} 39. Kg3 {[%clk
0:00:54.3]} 39... Kg7 {[%clk 0:00:52.4]} 40. h4 {[%clk 0:00:55]} 40... Kg6
{[%clk 0:00:52.6]} 41. hxg5 {[%clk 0:00:50.9]} 41... hxg5 {[%clk 0:00:54.5]} 42.
Rg4 {[%clk 0:00:51.4]} 42... Kf5 {[%clk 0:00:54.6]} 43. Rh1 {[%clk 0:00:49.4]}
43... Kg6 {[%clk 0:00:24.3]} 44. Bd2 {[%clk 0:00:35.7]} 44... f6 {[%clk
0:00:24.8]} 45. exf6 {[%clk 0:00:35]} 45... Rxb2 {[%clk 0:00:26.1]} 46. Bxg5
{[%clk 0:00:34.4]} 46... Rcc2 {[%clk 0:00:21.6]} 47. Bc1+ {[%clk 0:00:34.6]}
47... Kxf6 {[%clk 0:00:23.2]} 48. Bxb2+ {[%clk 0:00:35.6]} 48... Rxb2 {[%clk
0:00:25.1]} 49. Rh6+ {[%clk 0:00:35.6]} 49... Ke5 {[%clk 0:00:25.6]} 50. Rh5+
{[%clk 0:00:36.2]} 50... Kd6 {[%clk 0:00:26.8]} 51. Rd4 {[%clk 0:00:34.9]} 51...
Ra2 {[%clk 0:00:26.2]} 52. Rh7 {[%clk 0:00:23.6]} 52... Kc5 {[%clk 0:00:23.1]}
53. Rd1 {[%clk 0:00:22.7]} 53... Rxa5 {[%clk 0:00:24]} 54. Kf4 {[%clk
0:00:22.6]} 54... Ra3 {[%clk 0:00:25.3]} 55. Rc7+ {[%clk 0:00:21.3]} 55... Kb6
{[%clk 0:00:22.6]} 56. Rd7 {[%clk 0:00:21.7]} 56... Kc6 {[%clk 0:00:22.7]} 57.
Re7 {[%clk 0:00:21.3]} 57... b5 {[%clk 0:00:20.7]} 58. Rc1+ {[%clk 0:00:22.4]}
58... Kd6 {[%clk 0:00:19.5]} 59. Ra7 {[%clk 0:00:21.7]} 59... b4 {[%clk
0:00:14.5]} 60. Rd1 {[%clk 0:00:21.5]} 60... b3 {[%clk 0:00:14.8]} 61. Rd3
{[%clk 0:00:21]} 1-0

[Event "***Titled Tuesday 3|2 Blitz"]
[Site "Chess.com"]
[Date "2017.02.07"]
[Round "1"]
[White "RitvarsReimanis"]
[Black "ShimanovAlex"]
[Result "0-1"]
[WhiteElo "2349"]
[BlackElo "2642"]
[TimeControl "180+2"]
[EndTime "13:11:48 PST"]
[Termination "ShimanovAlex won by resignation"]

1. d4 {[%clk 0:03:01.3]} 1... Nf6 {[%clk 0:02:59.9]} 2. c4 {[%clk 0:03:01.3]}
2... g6 {[%clk 0:03:00.4]} 3. f3 {[%clk 0:03:01.6]} 3... Bg7 {[%clk 0:02:59.5]}
4. e4 {[%clk 0:03:01.2]} 4... d6 {[%clk 0:02:58.3]} 5. Ne2 {[%clk 0:02:36.6]}
5... O-O {[%clk 0:02:57.7]} 6. Nec3 {[%clk 0:02:36.8]} 6... c5 {[%clk
0:02:52.2]} 7. dxc5 {[%clk 0:02:37.6]} 7... dxc5 {[%clk 0:02:52.3]} 8. Qxd8
{[%clk 0:02:34.9]} 8... Rxd8 {[%clk 0:02:52.1]} 9. Be3 {[%clk 0:02:18.7]} 9...
Nc6 {[%clk 0:02:48.2]} 10. Bxc5 {[%clk 0:02:11.2]} 10... Nd7 {[%clk 0:02:49.1]}
11. Be3 {[%clk 0:02:03.2]} 11... Nde5 {[%clk 0:02:47.3]} 12. Na3 {[%clk
0:01:59.5]} 12... Nb4 {[%clk 0:02:43.5]} 13. Rd1 {[%clk 0:01:48.1]} 13... Be6
{[%clk 0:02:38.4]} 14. Nd5 {[%clk 0:01:43.7]} 14... Bxd5 {[%clk 0:02:35.8]} 15.
cxd5 {[%clk 0:01:43.3]} 15... Nxa2 {[%clk 0:02:36]} 16. Be2 {[%clk 0:01:35.4]}
16... Nd7 {[%clk 0:02:24.5]} 17. Rd2 {[%clk 0:01:32.7]} 17... Nb4 {[%clk
0:02:24.8]} 18. Kf2 {[%clk 0:01:28.8]} 18... Rdc8 {[%clk 0:02:25.1]} 19. Nc4
{[%clk 0:01:25.4]} 19... Nc5 {[%clk 0:02:21.7]} 20. Bxc5 {[%clk 0:01:04.6]}
20... Rxc5 {[%clk 0:02:20.5]} 21. Rhd1 {[%clk 0:00:58.2]} 21... Bf6 {[%clk
0:02:02.9]} 22. f4 {[%clk 0:00:42.3]} 22... Rd8 {[%clk 0:01:55.8]} 23. e5 {[%clk
0:00:36]} 23... Bg7 {[%clk 0:01:56.2]} 24. d6 {[%clk 0:00:35.6]} 24... exd6
{[%clk 0:01:56.5]} 25. Rxd6 {[%clk 0:00:34.2]} 25... Rxd6 {[%clk 0:01:55.8]} 26.
Rxd6 {[%clk 0:00:32.6]} 26... Rc7 {[%clk 0:01:48.7]} 27. Rd8+ {[%clk 0:00:31.7]}
27... Bf8 {[%clk 0:01:49.3]} 28. Nd6 {[%clk 0:00:32.7]} 28... Nc6 {[%clk
0:01:50.3]} 29. Ra8 {[%clk 0:00:32.6]} 29... Rd7 {[%clk 0:01:44.4]} 30. Ne4
{[%clk 0:00:30.4]} 30... Rd8 {[%clk 0:01:38.6]} 31. Nf6+ {[%clk 0:00:28.3]}
31... Kg7 {[%clk 0:01:39.7]} 32. Rxd8 {[%clk 0:00:24.2]} 32... Nxd8 {[%clk
0:01:41.6]} 33. Bf3 {[%clk 0:00:25.5]} 33... Be7 {[%clk 0:01:39.7]} 34. Ne8+
{[%clk 0:00:25.1]} 34... Kf8 {[%clk 0:01:40.4]} 35. Nc7 {[%clk 0:00:25.8]} 35...
Bc5+ {[%clk 0:01:37.8]} 36. Ke2 {[%clk 0:00:27]} 36... h5 {[%clk 0:01:36.2]} 37.
g3 {[%clk 0:00:26.6]} 37... Ke7 {[%clk 0:01:33.1]} 38. h3 {[%clk 0:00:28]} 38...
Kd7 {[%clk 0:01:32.9]} 39. Nd5 {[%clk 0:00:29.2]} 39... Ne6 {[%clk 0:01:31.6]}
40. Be4 {[%clk 0:00:21.9]} 40... Ng7 {[%clk 0:01:13.3]} 41. g4 {[%clk
0:00:22.5]} 41... hxg4 {[%clk 0:01:13.8]} 42. hxg4 {[%clk 0:00:24.4]} 42... Bd4
{[%clk 0:01:04.8]} 43. b3 {[%clk 0:00:22.9]} 43... Ne6 {[%clk 0:01:02.3]} 44.
Nf6+ {[%clk 0:00:20]} 44... Ke7 {[%clk 0:00:58.3]} 45. Nd5+ {[%clk 0:00:20.4]}
45... Kd8 {[%clk 0:00:59.4]} 46. Kd3 {[%clk 0:00:16.2]} 46... Ba1 {[%clk
0:01:00.3]} 47. Kc4 {[%clk 0:00:16.6]} 47... b6 {[%clk 0:00:55]} 48. b4 {[%clk
0:00:17.7]} 48... g5 {[%clk 0:00:47.2]} 49. f5 {[%clk 0:00:16.1]} 49... Nf8
{[%clk 0:00:48.4]} 50. Nc3 {[%clk 0:00:15.9]} 50... Nd7 {[%clk 0:00:48]} 51. e6
{[%clk 0:00:13.1]} 51... fxe6 {[%clk 0:00:48.6]} 52. fxe6 {[%clk 0:00:15]} 52...
Ne5+ {[%clk 0:00:48.5]} 53. Kb3 {[%clk 0:00:16.4]} 53... Bxc3 {[%clk 0:00:46.9]}
54. Kxc3 {[%clk 0:00:17.2]} 54... Nxg4 {[%clk 0:00:48.6]} 55. Kd4 {[%clk
0:00:18.1]} 55... Ke7 {[%clk 0:00:49.6]} 56. Bf5 {[%clk 0:00:18.1]} 56... Nf6
{[%clk 0:00:50.6]} 57. Ke5 {[%clk 0:00:18.9]} 57... g4 {[%clk 0:00:51]} 58. Kf4
{[%clk 0:00:19.8]} 58... Nd5+ {[%clk 0:00:51.6]} 59. Kxg4 {[%clk 0:00:20.4]}
59... Nxb4 {[%clk 0:00:53.2]} 60. Kf4 {[%clk 0:00:21.5]} 60... Kd6 {[%clk
0:00:53.8]} 61. Ke4 {[%clk 0:00:22.1]} 61... Nc6 {[%clk 0:00:54.8]} 62. Bh3
{[%clk 0:00:22.4]} 62... Nd8 {[%clk 0:00:55.6]} 63. e7 {[%clk 0:00:23.1]} 63...
Kxe7 {[%clk 0:00:56.6]} 64. Kd5 {[%clk 0:00:24.6]} 64... Nb7 {[%clk 0:00:44.1]}
65. Kc6 {[%clk 0:00:24.5]} 65... Nc5 {[%clk 0:00:44.9]} 66. Bf1 {[%clk
0:00:11.6]} 66... Kd8 {[%clk 0:00:45.3]} 67. Bh3 {[%clk 0:00:07.4]} 67... Ke7
{[%clk 0:00:41.3]} 68. Bf1 {[%clk 0:00:08.3]} 68... Ke6 {[%clk 0:00:42]} 69.
Bc4+ {[%clk 0:00:07.1]} 69... Ke5 {[%clk 0:00:43]} 70. Bf1 {[%clk 0:00:06]}
70... Kd4 {[%clk 0:00:42.3]} 71. Kb5 {[%clk 0:00:06.7]} 71... Kd5 {[%clk
0:00:43.3]} 72. Bg2+ {[%clk 0:00:07.3]} 72... Kd6 {[%clk 0:00:44.6]} 73. Bh1
{[%clk 0:00:08.6]} 73... Kc7 {[%clk 0:00:45.5]} 74. Bg2 {[%clk 0:00:09.5]} 74...
a6+ {[%clk 0:00:46.5]} 75. Kc4 {[%clk 0:00:10.4]} 75... Nb7 {[%clk 0:00:44.5]}
76. Kb4 {[%clk 0:00:11]} 76... b5 {[%clk 0:00:44.6]} 77. Kb3 {[%clk 0:00:06.9]}
77... Kb6 {[%clk 0:00:45.5]} 78. Ka3 {[%clk 0:00:08.4]} 78... Nc5 {[%clk
0:00:46.5]} 79. Kb4 {[%clk 0:00:09.7]} 79... a5+ {[%clk 0:00:47.8]} 80. Ka3
{[%clk 0:00:11.2]} 80... b4+ {[%clk 0:00:48.9]} 81. Kb2 {[%clk 0:00:12.6]} 81...
a4 {[%clk 0:00:49.9]} 82. Bd5 {[%clk 0:00:13.7]} 82... Kb5 {[%clk 0:00:48.3]}
83. Kc2 {[%clk 0:00:14.7]} 83... Nd7 {[%clk 0:00:46.3]} 84. Bf7 {[%clk
0:00:15.1]} 84... Nb6 {[%clk 0:00:47.2]} 85. Be8+ {[%clk 0:00:15.4]} 85... Kc5
{[%clk 0:00:48.4]} 86. Bf7 {[%clk 0:00:15.9]} 86... Nc4 {[%clk 0:00:48.3]} 87.
Kd3 {[%clk 0:00:17.2]} 87... Ne5+ {[%clk 0:00:46.7]} 0-1

[Event "***Titled Tuesday 3|2 Blitz"]
[Site "Chess.com"]
[Date "2017.02.07"]
[Round "1"]
[White "popov_m"]
[Black "GMBenjaminBok"]
[Result "0-1"]
[WhiteElo "2325"]
[BlackElo "2622"]
[TimeControl "180+2"]
[EndTime "13:12:00 PST"]
[Termination "GMBenjaminBok won by resignation"]

1. d4 {[%clk 0:03:02]} 1... Nf6 {[%clk 0:03:00.2]} 2. Bf4 {[%clk 0:03:02.3]}
2... g6 {[%clk 0:02:57.6]} 3. Nf3 {[%clk 0:03:03.2]} 3... Bg7 {[%clk 0:02:58.3]}
4. e3 {[%clk 0:03:04.5]} 4... O-O {[%clk 0:02:59.3]} 5. Be2 {[%clk 0:03:06.1]}
5... c5 {[%clk 0:02:58.9]} 6. c3 {[%clk 0:03:06.5]} 6... Qb6 {[%clk 0:02:59.7]}
7. Qb3 {[%clk 0:03:06.1]} 7... d6 {[%clk 0:03:00.8]} 8. Nbd2 {[%clk 0:03:01.8]}
8... Be6 {[%clk 0:03:01.2]} 9. Bc4 {[%clk 0:02:57.9]} 9... Bxc4 {[%clk
0:02:49.6]} 10. Nxc4 {[%clk 0:02:59.8]} 10... Qa6 {[%clk 0:02:50.4]} 11. a4
{[%clk 0:02:47.4]} 11... Rc8 {[%clk 0:02:46.1]} 12. Nfd2 {[%clk 0:02:27.9]}
12... d5 {[%clk 0:02:26.1]} 13. Ne5 {[%clk 0:02:26.9]} 13... Nc6 {[%clk
0:02:21]} 14. Qb5 {[%clk 0:02:18.8]} 14... Qxb5 {[%clk 0:01:50.1]} 15. axb5
{[%clk 0:02:19.3]} 15... Nxe5 {[%clk 0:01:52]} 16. Bxe5 {[%clk 0:02:20]} 16...
Ne8 {[%clk 0:01:51.8]} 17. Bxg7 {[%clk 0:02:17.4]} 17... Kxg7 {[%clk 0:01:50.7]}
18. Nb1 {[%clk 0:01:42.2]} 18... Nd6 {[%clk 0:01:45.8]} 19. Na3 {[%clk
0:01:43.1]} 19... a6 {[%clk 0:01:31.5]} 20. bxa6 {[%clk 0:01:40.6]} 20... Rxa6
{[%clk 0:01:33.1]} 21. Ke2 {[%clk 0:01:36.5]} 21... Rb6 {[%clk 0:01:31.9]} 22.
Rhb1 {[%clk 0:01:33.3]} 22... e6 {[%clk 0:01:17.6]} 23. Kd3 {[%clk 0:01:30.8]}
23... Kf6 {[%clk 0:01:13.9]} 24. f3 {[%clk 0:01:19.4]} 24... Ke7 {[%clk
0:01:11.4]} 25. Kc2 {[%clk 0:00:25.1]} 25... h5 {[%clk 0:00:55.6]} 26. Kd3
{[%clk 0:00:22.6]} 26... g5 {[%clk 0:00:52]} 27. h3 {[%clk 0:00:21.9]} 27... h4
{[%clk 0:00:52.8]} 28. Kc2 {[%clk 0:00:22.6]} 28... cxd4 {[%clk 0:00:43]} 29.
exd4 {[%clk 0:00:23.7]} 29... Nf5 {[%clk 0:00:44.5]} 30. Kd3 {[%clk 0:00:24.7]}
30... Ng3 {[%clk 0:00:45]} 31. Nc2 {[%clk 0:00:19.9]} 31... Nh5 {[%clk
0:00:45.4]} 32. Nb4 {[%clk 0:00:15.1]} 32... Nf4+ {[%clk 0:00:45.9]} 33. Kd2
{[%clk 0:00:16.4]} 33... Kf6 {[%clk 0:00:39.6]} 34. Rg1 {[%clk 0:00:17.5]} 34...
Rd6 {[%clk 0:00:38.4]} 35. Ke3 {[%clk 0:00:18.4]} 35... Rdd8 {[%clk 0:00:37.4]}
36. Ra7 {[%clk 0:00:19.8]} 36... Rb8 {[%clk 0:00:37]} 37. Kf2 {[%clk 0:00:21.1]}
37... Kf5 {[%clk 0:00:34.5]} 38. Re1 {[%clk 0:00:22.1]} 38... f6 {[%clk
0:00:35.4]} 39. Ra5 {[%clk 0:00:21.1]} 39... Ra8 {[%clk 0:00:33.7]} 40. Rea1
{[%clk 0:00:21.4]} 40... Rxa5 {[%clk 0:00:31]} 41. Rxa5 {[%clk 0:00:23.3]} 41...
e5 {[%clk 0:00:31.5]} 42. Rb5 {[%clk 0:00:24.2]} 42... Rd7 {[%clk 0:00:24.4]}
43. Rc5 {[%clk 0:00:15.6]} 43... exd4 {[%clk 0:00:13.8]} 44. cxd4 {[%clk
0:00:17.5]} 44... Re7 {[%clk 0:00:15.4]} 45. Nxd5 {[%clk 0:00:16.1]} 45... Nd3+
{[%clk 0:00:16.1]} 46. Kg1 {[%clk 0:00:14.5]} 46... Re1+ {[%clk 0:00:17.5]} 47.
Kh2 {[%clk 0:00:15.5]} 47... Nxc5 {[%clk 0:00:18.8]} 48. dxc5 {[%clk 0:00:17.1]}
48... Re5 {[%clk 0:00:18.9]} 49. Nc3 {[%clk 0:00:15.7]} 49... Rxc5 {[%clk
0:00:19.7]} 50. Ne4 {[%clk 0:00:17.3]} 50... Rc2 {[%clk 0:00:19.1]} 51. Nd6+
{[%clk 0:00:18.5]} 51... Kf4 {[%clk 0:00:19.3]} 52. Nxb7 {[%clk 0:00:19.1]}
52... Rxb2 {[%clk 0:00:19.3]} 53. Nc5 {[%clk 0:00:20.7]} 53... Re2 {[%clk
0:00:18.7]} 54. Nd7 {[%clk 0:00:18.9]} 54... Kf5 {[%clk 0:00:18.2]} 55. Nc5
{[%clk 0:00:19.4]} 55... Re3 {[%clk 0:00:18.2]} 56. Kg1 {[%clk 0:00:20.1]} 56...
Re5 {[%clk 0:00:17.4]} 57. Nd3 {[%clk 0:00:20.8]} 57... Rd5 {[%clk 0:00:18.1]}
58. Nb4 {[%clk 0:00:13.1]} 58... Rd2 {[%clk 0:00:18.7]} 59. Nc6 {[%clk
0:00:13.5]} 59... Kf4 {[%clk 0:00:18.7]} 60. Kh2 {[%clk 0:00:14.8]} 60... Kf5
{[%clk 0:00:17.2]} 61. Ne7+ {[%clk 0:00:12.6]} 61... Ke6 {[%clk 0:00:17.8]} 62.
Nc6 {[%clk 0:00:14.1]} 62... Kd6 {[%clk 0:00:18]} 63. Nd8 {[%clk 0:00:14.7]}
63... Rb2 {[%clk 0:00:16.9]} 64. Nf7+ {[%clk 0:00:13.8]} 64... Ke7 {[%clk
0:00:16.7]} 65. Nh6 {[%clk 0:00:14.5]} 65... Ke6 {[%clk 0:00:17.3]} 66. Ng4
{[%clk 0:00:15.7]} 66... Re2 {[%clk 0:00:16]} 67. Kg1 {[%clk 0:00:14.3]} 67...
f5 {[%clk 0:00:16.9]} 68. Nf2 {[%clk 0:00:14.7]} 68... Rd2 {[%clk 0:00:16.4]}
69. Kf1 {[%clk 0:00:15.9]} 69... Ke5 {[%clk 0:00:17.3]} 70. Ke1 {[%clk
0:00:17.1]} 70... Rd8 {[%clk 0:00:17.5]} 71. Kf1 {[%clk 0:00:06.6]} 71... Kf4
{[%clk 0:00:18.6]} 72. Kg1 {[%clk 0:00:06.7]} 72... Ke3 {[%clk 0:00:19]} 73. Nh1
{[%clk 0:00:07.6]} 73... Rd1+ {[%clk 0:00:18]} 74. Kh2 {[%clk 0:00:09.1]} 74...
f4 {[%clk 0:00:15.2]} 0-1

[Event "***Titled Tuesday 3|2 Blitz"]
[Site "Chess.com"]
[Date "2017.02.07"]
[Round "1"]
[White "Kacparov"]
[Black "kikydu96"]
[Result "0-1"]
[WhiteElo "2585"]
[BlackElo "2340"]
[TimeControl "180+2"]
[EndTime "13:13:10 PST"]
[Termination "kikydu96 won by resignation"]

1. e4 {[%clk 0:03:01.9]} 1... e5 {[%clk 0:02:58.4]} 2. Nf3 {[%clk 0:02:55.9]}
2... Nc6 {[%clk 0:02:59.5]} 3. Bb5 {[%clk 0:02:55.6]} 3... Nf6 {[%clk
0:03:00.5]} 4. Qe2 {[%clk 0:02:56]} 4... Bc5 {[%clk 0:02:52.4]} 5. c3 {[%clk
0:02:54.5]} 5... O-O {[%clk 0:02:18]} 6. O-O {[%clk 0:02:45.6]} 6... d6 {[%clk
0:02:17.2]} 7. h3 {[%clk 0:02:43.8]} 7... Bb6 {[%clk 0:02:13.1]} 8. d3 {[%clk
0:02:38.8]} 8... h6 {[%clk 0:02:13.4]} 9. Nbd2 {[%clk 0:02:38.2]} 9... Ne7
{[%clk 0:02:14.2]} 10. Nc4 {[%clk 0:02:36.2]} 10... Ng6 {[%clk 0:02:12.2]} 11.
Nxb6 {[%clk 0:02:23.2]} 11... axb6 {[%clk 0:02:12]} 12. Bc4 {[%clk 0:02:23.2]}
12... Be6 {[%clk 0:02:04.9]} 13. Kh2 {[%clk 0:02:13.4]} 13... Bxc4 {[%clk
0:01:58.4]} 14. dxc4 {[%clk 0:02:14.1]} 14... Qd7 {[%clk 0:01:52.9]} 15. Ne1
{[%clk 0:02:12.4]} 15... Qc6 {[%clk 0:01:51.3]} 16. f3 {[%clk 0:02:13.1]} 16...
Nh5 {[%clk 0:01:49.1]} 17. b3 {[%clk 0:02:12.6]} 17... Nhf4 {[%clk 0:01:49.5]}
18. Qc2 {[%clk 0:02:13.1]} 18... Qd7 {[%clk 0:01:47.9]} 19. Nd3 {[%clk 0:02:09]}
19... Nxd3 {[%clk 0:01:42.1]} 20. Qxd3 {[%clk 0:02:10.9]} 20... f5 {[%clk
0:01:43.6]} 21. a4 {[%clk 0:02:07.5]} 21... Kh7 {[%clk 0:01:39.9]} 22. Be3
{[%clk 0:02:06.4]} 22... fxe4 {[%clk 0:01:27.9]} 23. Qxe4 {[%clk 0:02:07.1]}
23... Qc6 {[%clk 0:01:18]} 24. Qd3 {[%clk 0:01:55.1]} 24... Rae8 {[%clk
0:01:18.7]} 25. Rae1 {[%clk 0:01:42.4]} 25... e4 {[%clk 0:01:16.4]} 26. fxe4
{[%clk 0:01:42.9]} 26... Qxe4 {[%clk 0:01:08.9]} 27. Qxe4 {[%clk 0:01:39.6]}
27... Rxe4 {[%clk 0:01:07.4]} 28. Bd4 {[%clk 0:01:40.3]} 28... Rfe8 {[%clk
0:00:58.2]} 29. Rxe4 {[%clk 0:01:29.1]} 29... Rxe4 {[%clk 0:01:00.1]} 30. Kg3
{[%clk 0:01:30.4]} 30... Ne5 {[%clk 0:00:39.1]} 31. Rf8 {[%clk 0:01:28.6]} 31...
Nc6 {[%clk 0:00:33]} 32. Bf2 {[%clk 0:01:21.1]} 32... Re2 {[%clk 0:00:27]} 33.
Rc8 {[%clk 0:01:17.2]} 33... Rc2 {[%clk 0:00:21.2]} 34. Rxc7 {[%clk 0:01:10.8]}
34... Rxc3+ {[%clk 0:00:22.5]} 35. Kh2 {[%clk 0:01:08]} 35... Rxb3 {[%clk
0:00:23.6]} 36. Rxb7 {[%clk 0:01:08.3]} 36... Rb4 {[%clk 0:00:23.8]} 37. Rxb6
{[%clk 0:01:06.8]} 37... Rxc4 {[%clk 0:00:23.4]} 38. Ra6 {[%clk 0:01:04.6]}
38... d5 {[%clk 0:00:24]} 39. Ra8 {[%clk 0:01:01.1]} 39... d4 {[%clk 0:00:24.5]}
40. a5 {[%clk 0:01:02.1]} 40... d3 {[%clk 0:00:25.3]} 41. Be3 {[%clk 0:01:02.3]}
41... Re4 {[%clk 0:00:26.3]} 42. Bd2 {[%clk 0:00:55.1]} 42... Re2 {[%clk
0:00:27.1]} 43. Bc3 {[%clk 0:00:55.8]} 43... d2 {[%clk 0:00:27]} 44. Bxd2 {[%clk
0:00:52]} 44... Rxd2 {[%clk 0:00:28.9]} 45. a6 {[%clk 0:00:51.9]} 45... Ra2
{[%clk 0:00:29.6]} 46. Kg3 {[%clk 0:00:53]} 46... Nb4 {[%clk 0:00:29.5]} 47. a7
{[%clk 0:00:53.8]} 47... Nc6 {[%clk 0:00:29.9]} 48. Rc8 {[%clk 0:00:54.9]} 48...
Nxa7 {[%clk 0:00:31]} 49. Rc3 {[%clk 0:00:55.8]} 49... Nb5 {[%clk 0:00:31.5]}
50. Rc4 {[%clk 0:00:57.2]} 50... Nd6 {[%clk 0:00:32.5]} 51. Rb4 {[%clk
0:00:56.9]} 51... Ra3+ {[%clk 0:00:32.8]} 52. Kf4 {[%clk 0:00:56.7]} 52... Rc3
{[%clk 0:00:32.1]} 53. Rb6 {[%clk 0:00:57]} 53... Nc4 {[%clk 0:00:28.2]} 54. Rc6
{[%clk 0:00:57.6]} 54... Rc2 {[%clk 0:00:29.4]} 55. g4 {[%clk 0:00:57.7]} 55...
Ne3 {[%clk 0:00:25.7]} 56. Rd6 {[%clk 0:00:57]} 56... Nc4 {[%clk 0:00:21.5]} 57.
Rd3 {[%clk 0:00:56.6]} 57... Re2 {[%clk 0:00:19.8]} 58. h4 {[%clk 0:00:57.1]}
58... Re7 {[%clk 0:00:20.3]} 59. h5 {[%clk 0:00:53.8]} 59... Ne5 {[%clk
0:00:19.7]} 60. Rd6 {[%clk 0:00:53]} 60... Nf7 {[%clk 0:00:18.7]} 61. Ra6 {[%clk
0:00:53.5]} 61... Ng5 {[%clk 0:00:19.7]} 62. Ra4 {[%clk 0:00:54.7]} 62... Rf7+
{[%clk 0:00:20.9]} 63. Kg3 {[%clk 0:00:55.8]} 63... Rf3+ {[%clk 0:00:21.5]} 64.
Kg2 {[%clk 0:00:57.2]} 64... Kg8 {[%clk 0:00:22.5]} 65. Ra5 {[%clk 0:00:57.9]}
65... Rf4 {[%clk 0:00:22.7]} 66. Kg3 {[%clk 0:00:59.2]} 66... Rf3+ {[%clk
0:00:24.1]} 67. Kg2 {[%clk 0:01:00.1]} 67... Rf6 {[%clk 0:00:26]} 68. Kg3 {[%clk
0:01:00.1]} 68... Kf7 {[%clk 0:00:26.8]} 69. Ra7+ {[%clk 0:01:00.8]} 69... Kg8
{[%clk 0:00:28]} 70. Ra8+ {[%clk 0:01:01.9]} 70... Kh7 {[%clk 0:00:28.5]} 71.
Ra3 {[%clk 0:01:02.2]} 71... Re6 {[%clk 0:00:28.7]} 72. Rb3 {[%clk 0:01:02.7]}
72... Re4 {[%clk 0:00:29.7]} 73. Ra3 {[%clk 0:01:03.2]} 73... Kg8 {[%clk
0:00:31.1]} 74. Ra8+ {[%clk 0:01:03.7]} 74... Kf7 {[%clk 0:00:32.5]} 75. Ra7+
{[%clk 0:01:05]} 75... Kf6 {[%clk 0:00:34]} 76. Ra6+ {[%clk 0:01:05.3]} 76...
Ne6 {[%clk 0:00:35.1]} 77. Ra3 {[%clk 0:01:04.9]} 77... Re5 {[%clk 0:00:35.9]}
78. Rb3 {[%clk 0:01:02.3]} 78... Kg5 {[%clk 0:00:37.1]} 79. Ra3 {[%clk
0:01:03.6]} 79... Nc5 {[%clk 0:00:37.1]} 80. Kh3 {[%clk 0:01:02.8]} 80... Ne4
{[%clk 0:00:36.8]} 81. Ra7 {[%clk 0:01:03.2]} 81... Kf6 {[%clk 0:00:36.6]} 82.
Ra6+ {[%clk 0:01:04.4]} 82... Re6 {[%clk 0:00:37.8]} 83. Ra3 {[%clk 0:01:04.8]}
83... Rc6 {[%clk 0:00:38.8]} 84. Kh4 {[%clk 0:01:05]} 84... Ng5 {[%clk
0:00:37.6]} 85. Re3 {[%clk 0:00:53.1]} 85... Rc1 {[%clk 0:00:37.7]} 86. Kg3
{[%clk 0:00:52.9]} 86... Rh1 {[%clk 0:00:36.3]} 87. Re8 {[%clk 0:00:46.6]} 87...
Rg1+ {[%clk 0:00:34.2]} 88. Kf4 {[%clk 0:00:47.1]} 88... Nh3+ {[%clk 0:00:34.6]}
89. Kf3 {[%clk 0:00:48.3]} 89... Kg5 {[%clk 0:00:34.9]} 90. Re7 {[%clk
0:00:46.7]} 90... Kh4 {[%clk 0:00:31.5]} 91. Rxg7 {[%clk 0:00:45.8]} 91... Rg3+
{[%clk 0:00:32.7]} 92. Ke2 {[%clk 0:00:40.6]} 92... Rxg4 {[%clk 0:00:33.9]} 93.
Re7 {[%clk 0:00:34.9]} 93... Kxh5 {[%clk 0:00:34.2]} 94. Kf3 {[%clk 0:00:36.3]}
94... Ng5+ {[%clk 0:00:33.1]} 95. Kf2 {[%clk 0:00:37.6]} 95... Kh4 {[%clk
0:00:33.2]} 96. Re1 {[%clk 0:00:37.6]} 96... h5 {[%clk 0:00:34.5]} 97. Rh1+
{[%clk 0:00:37.7]} 97... Nh3+ {[%clk 0:00:35.8]} 98. Kf3 {[%clk 0:00:39.1]}
98... Rg3+ {[%clk 0:00:36.2]} 99. Ke4 {[%clk 0:00:40.3]} 99... Kg4 {[%clk
0:00:37.8]} 100. Rf1 {[%clk 0:00:41.4]} 100... Ng5+ {[%clk 0:00:36.9]} 101. Ke5
{[%clk 0:00:42.5]} 101... Re3+ {[%clk 0:00:37.8]} 102. Kd4 {[%clk 0:00:43.2]}
102... Rf3 {[%clk 0:00:37.8]} 103. Rg1+ {[%clk 0:00:44.2]} 103... Rg3 {[%clk
0:00:39.1]} 104. Rf1 {[%clk 0:00:44.6]} 104... h4 {[%clk 0:00:40.1]} 105. Ke5
{[%clk 0:00:46]} 105... Nf3+ {[%clk 0:00:38.7]} 106. Kf6 {[%clk 0:00:46.1]}
106... h3 {[%clk 0:00:39.3]} 107. Ra1 {[%clk 0:00:43.6]} 107... h2 {[%clk
0:00:40.6]} 108. Ra4+ {[%clk 0:00:44.6]} 108... Kh3 {[%clk 0:00:41.7]} 109. Ra1
{[%clk 0:00:45.2]} 109... Rg1 {[%clk 0:00:39.5]} 0-1